Cogmind - Beta 13 @@@ ROGUE MODE // 2024.04.06 @ 04:45:43 Player: DURANDAL Result: Destroyed by G-47 Trooper with Particle Gun Performance ------------- Evolutions (2) 1000 Regions Visited (5) 1000 Robots Destroyed (40) 200 Value Destroyed (1024) 1024 Prototype IDs (1) 20 Alien Tech Used (0) 0 Bonus (300) 300 TOTAL SCORE: 3544 Bonus ------- Aligned with FarCom 300 Cogmind --------- Core Integrity 0/550 Matter 283/300 Energy 250/250 System Corruption 3% Temperature Cool (9) Movement Core (3450) Ox68 Location -8/Materials Parts ------- > --- POWER (1) -------- Ion Engine > --- PROPULSION (4) --- (None) > --- UTILITY (4) ------ Humpback > --- WEAPON (2) ------- (None) > --- INVENTORY (35) --- Heavy Armor Plating Peak State ------------ > --- POWER ------------ Light Nuclear Core > --- PROPULSION ------- Light Treads Light Treads > --- UTILITY ---------- Superbattery Hacking Suite > --- WEAPON ----------- Light Assault Rifle Light Assault Rifle > --- INVENTORY -------- High-capacity Storage Unit Signal Interpreter Improved Terrain Scanner Particle Gun Mining Laser [Rating: 20] Favorites ----------- Power Light Nuclear Core Engine Light Deuterium Engine Power Core Light Nuclear Core Propulsion Light Treads Treads Light Treads Utility Hacking Suite Device Sensor Array Storage Huge Storage Unit Hackware Hacking Suite Protection Light Armor Plating Weapon Light Assault Rifle Ballistic Gun Light Assault Rifle Launcher Grenade Launcher Build | -11 -10 -10 -10 -9 -8 ------- Run | Yrd Mat Min Exi Min Mat Slots Evolved 4 | . . . . . 4 Power . | . . . . . . Propulsion 2 | . . . . . 2 Utility 2 | . . . . . 2 Weapon . | . . . . . . Parts Attached 28 | 6 11 . 2 . 9 Power 4 | 1 1 . . . 2 Engine 3 | 1 . . . . 2 Core 1 | . 1 . . . . Reactor . | . . . . . . Propulsion 6 | 2 2 . . . 2 Treads 6 | 2 2 . . . 2 Leg . | . . . . . . Wheel . | . . . . . . Hover . | . . . . . . Flight . | . . . . . . Utility 11 | 1 4 . 2 . 4 Device 2 | . 1 . . . 1 Storage 7 | 1 2 . 2 . 2 Processor . | . . . . . . Hackware 1 | . 1 . . . . Protection 1 | . . . . . 1 Artifact . | . . . . . . Weapon 7 | 2 4 . . . 1 Energy Gun . | . . . . . . Energy Cannon . | . . . . . . Ballistic Gun 6 | 2 3 . . . 1 Ballistic Cannon . | . . . . . . Launcher 1 | . 1 . . . . Special Weapon . | . . . . . . Impact Weapon . | . . . . . . Slashing Weapon . | . . . . . . Piercing Weapon . | . . . . . . Special Melee Weapon . | . . . . . . Unidentified Prototypes 1 | . . . 1 . . Parts Lost 13 | . 1 . . . 12 Power 2 | . . . . . 2 Propulsion 4 | . . . . . 4 Utility 3 | . . . . . 3 Weapon 4 | . 1 . . . 3 Highest Loss Streak 5 | . 1 . . . 5 To Critical Strikes . | . . . . . . Average Slot Usage (%) 92 | . 99 100 100 100 66 Engine 1 | . 1 . . . 3 Core 10 | . 12 14 14 14 1 Treads 27 | . 28 28 28 28 25 Device 1 | . 4 . . . . Storage 12 | . 14 14 14 14 8 Hackware 10 | . 9 14 14 14 8 Ballistic Gun 25 | . 27 28 28 28 15 Naked Turns 2 | . . . . . 2 Heaviest Build 210 | 13 87 87 87 87 210 Greatest Support 80 | 40 40 40 40 40 80 Greatest Overweight (x) 67 | . 2 2 2 2 67 Average Overweight (x) 1 | . 1 2 1 2 3 Largest Inventory Capacity 35 | 8 25 25 25 25 35 Average Capacity 24 | 7 19 25 24 25 34 Most Carried 25 | 3 15 15 20 22 25 Average Carried 15 | . 10 14 16 21 22 Final Capacity 35 | 8 25 25 25 25 35 Final Carried 22 | 1 14 15 20 22 2 Class Distribution -------------------- 77% | Mutant 22% | Hauler-Mutant Dominant Class ---------------- Mutant | -10/Materials Mutant | -10/Mines Mutant | -10/Exiles Mutant | -9/Mines Hauler-Mutant | -8/Materials Resources | -11 -10 -10 -10 -9 -8 ----------- Run | Yrd Mat Min Exi Min Mat Matter Collected 867 | 254 387 10 . 20 196 Remotely . | . . . . . . Salvage Created 1283 | . 722 43 . . 518 Parts 101 | . 64 8 . . 29 Haulers Intercepted 1 | . 1 . . . . Recyclers Shooed 2 | . 2 . . . . Parts Field Recycled . | . . . . . . Retrieved Matter . | . . . . . . Parts Self-Destructed . | . . . . . . Prevented . | . . . . . . Kills | -11 -10 -10 -10 -9 -8 ------- Run | Yrd Mat Min Exi Min Mat Combat Hostiles Destroyed 26 | . 14 3 . . 9 Melee 1 | . . . . . 1 Guns 24 | . 13 3 . . 8 AOE 1 | . 1 . . . . Classes Destroyed 8 | . 7 . . . 1 Worker 3 | . 3 . . . . Tunneler 3 | . 3 . . . . Hauler 1 | . 1 . . . . Operator 3 | . 3 . . . . Watcher 4 | . 3 . . . 1 Swarmer 6 | . 3 3 . . . Grunt 17 | . 11 . . . 6 Sentry 3 | . . . . . 3 Best Kill Streak 4 | . 4 3 . . 2 Combat Bots Only 3 | . 2 3 . . 2 Max Kills in Single Turn 2 | . 1 2 . . 1 Gunslinging 1 | . . 1 . . . Exploded 1 | . 1 . . . . Melee 1 | . . . . . 1 Uniques/NPCs Destroyed . | . . . . . . Combat | -11 -10 -10 -10 -9 -8 -------- Run | Yrd Mat Min Exi Min Mat Hostile Shots Fired 263 | . 83 15 . . 165 Missed 60 | . 26 3 . . 31 Damage Taken 2831 | . 626 97 . . 2108 Core 735 | . 140 40 . . 555 Absorbed by Shields . | . . . . . . Regen/Repaired (Parts) 286 | . 286 . . . . Core Remaining (%) 64 | 100 . . . 28 . Volleys Fired 187 | . 86 5 . . 96 Largest 2 | . 2 2 . . 2 Hottest 50 | . 50 40 . . 40 Shots Fired 319 | . 159 10 . . 150 Gun 317 | . 157 10 . . 150 Cannon . | . . . . . . Launcher 2 | . 2 . . . . Special . | . . . . . . Kinetic 317 | . 157 10 . . 150 Thermal . | . . . . . . Explosive 2 | . 2 . . . . Electromagnetic . | . . . . . . Robot Hit Streak 11 | . 11 2 . . 8 Robot Miss Streak 4 | . 3 4 . . 4 Penetration Max . | . . . . . . Secondary Targets 10 | . 6 2 . . 2 Max Gunslinging Chain 1 | . 1 1 . . 1 Shots Hit Robots 199 | . 104 4 . . 91 Core Hits 98 | 1 53 4 . . 40 Critical Kills 1 | . . . . . 1 Critical Parts Destroyed 1 | . . . . . 1 Critical Strikes 2 | . . . . . 2 Destroy 2 | . . . . . 2 Melee Attacks . | . . . . . . Impact . | . . . . . . Slashing . | . . . . . . Piercing . | . . . . . . Sneak Attacks . | . . . . . . Combat Hostiles . | . . . . . . Follow-up Attacks . | . . . . . . Damage Inflicted 2148 | 8 1232 49 . . 859 Guns 1845 | . 1012 37 . . 796 Cannons . | . . . . . . Explosions 183 | . 183 . . . . Melee . | . . . . . . Ramming 120 | 8 37 12 . . 63 Kinetic 1845 | . 1012 37 . . 796 Thermal . | . . . . . . Explosive 183 | . 183 . . . . Electromagnetic . | . . . . . . Impact . | . . . . . . Slashing . | . . . . . . Piercing . | . . . . . . Highest Corruption 3 | . . . . . 3 Average Corruption 2 | . . . . . 2 Corruption Purged . | . . . . . . Corruption Blocked . | . . . . . . Effects 2 | . . . . . 2 Energy Discharges 1 | . . . . . 1 Data Loss (minor) 1 | . . . . . 1 Overload Shots . | . . . . . . Overflow Damage 6 | . 6 . . . . Projectiles . | . . . . . . Explosions 6 | . 6 . . . . Melee . | . . . . . . Knockbacks 3 | . 1 . . . 2 Impact 3 | . 1 . . . 2 Kinetic . | . . . . . . Secondary . | . . . . . . Self-Inflicted Damage 43 | . 24 . . . 19 Shots 1 | . 1 . . . . Rammed 21 | 2 5 1 . . 13 Targets Rammed 21 | 2 5 1 . . 13 Kicked . | . . . . . . Crushed . | . . . . . . Highest Temperature 34 | . 22 8 . . 34 Average Temperature 6 | . 5 3 . . 11 Received Heat Transfer 1500 | . 249 . . . 1251 Siege Activations . | . . . . . . Robots Corrupted . | . . . . . . Combat Hostiles . | . . . . . . Parts Fried . | . . . . . . Impact Corruptions . | . . . . . . Robots Melted . | . . . . . . Combat Hostiles . | . . . . . . Parts Melted . | . . . . . . Heat Transferred . | . . . . . . Parts Sabotaged . | . . . . . . Parts Stolen . | . . . . . . Parts Stripped . | . . . . . . Power Chain Reactions . | . . . . . . Alert | -11 -10 -10 -10 -9 -8 ------- Run | Yrd Mat Min Exi Min Mat Peak Influence 209 | . 209 73 . . 188 Initial 3 | . . 3 . . . Average 41 | . 54 17 . . 38 Maximum Alert Level 1 | . 1 . . . . Low Security (%) 98 | 100 97 100 . 100 100 Level 1 1 | . 2 . . . . Level 2 . | . . . . . . Level 3 . | . . . . . . Level 4 . | . . . . . . Level 5 . | . . . . . . High Security . | . . . . . . Max Security . | . . . . . . Squads Dispatched 7 | . 4 . . . 3 Investigation 1 | . 1 . . . . Extermination . | . . . . . . Reinforcement 5 | . 3 . . . 2 Assault . | . . . . . . Garrison 1 | . . . . . 1 Intercept . | . . . . . . Searches Triggered . | . . . . . . Construction Impeded . | . . . . . . Haulers Reinforced . | . . . . . . Active Scanning Responses . | . . . . . . Cargo Convoy Interrupts . | . . . . . . Stealth | -11 -10 -10 -10 -9 -8 --------- Run | Yrd Mat Min Exi Min Mat Distress Signals 4 | . 2 . . . 2 Communications Jammed . | . . . . . . Distress Signals . | . . . . . . Times Spotted 49 | . 26 3 . . 20 Peak Tracking Total 5 | . 5 3 . . 3 Tactical Retreats 2 | . 1 . . . 1 Traps | -11 -10 -10 -10 -9 -8 ------- Run | Yrd Mat Min Exi Min Mat Traps Triggered . | . . . . . . Indirectly . | . . . . . . Trap Hack Attempts . | . . . . . . Triggered . | . . . . . . Disarmed 12 | . 12 . . . . Reprogrammed . | . . . . . . Reused . | . . . . . . Traps Extracted . | . . . . . . Installed . | . . . . . . Triggered . | . . . . . . Machines | -11 -10 -10 -10 -9 -8 ---------- Run | Yrd Mat Min Exi Min Mat Machines Disabled . | . . . . . . Max in Single Turn . | . . . . . . Garrison Access 1 | . . . . . 1 Machines Repaired . | . . . . . . Machines Dismantled . | . . . . . . Machines Sabotaged . | . . . . . . Overloaded Fab Kills . | . . . . . . Hacking | -11 -10 -10 -10 -9 -8 --------- Run | Yrd Mat Min Exi Min Mat Machines Accessed 9 | . 7 . . . 2 Terminals 5 | . 4 . . . 1 Fabricators . | . . . . . . Repair Stations 1 | . 1 . . . . Recycling Units 2 | . 2 . . . . Scanalyzers . | . . . . . . Garrison Access 1 | . . . . . 1 Total Hacks 19 | . 17 . . . 2 Successful 16 | . 14 . . . 2 Failed 3 | . 3 . . . . Catastrophic . | . . . . . . Database Lockouts . | . . . . . . Manual 3 | . 2 . 1 . . Terminals 7 | . 6 . . . 1 Fabricators . | . . . . . . Repair Stations 7 | . 7 . . . . Recycling Units 4 | . 4 . . . . Scanalyzers . | . . . . . . Garrison Access 1 | . . . . . 1 Terminal Hacks 6 | . 5 . . . 1 Record 1 | . . . . . 1 Emergency Access Points 1 | . 1 . . . . Locate Traps 1 | . 1 . . . . Disarm Traps 2 | . 2 . . . . Recall Investigation 1 | . 1 . . . . Fabricator Hacks . | . . . . . . Repair Station Hacks 6 | . 6 . . . . Scan Component 3 | . 3 . . . . Repair 3 | . 3 . . . . Recycling Unit Hacks 3 | . 3 . . . . Report Inventory 2 | . 2 . . . . Retrieve Components 1 | . 1 . . . . Scanalyzer . | . . . . . . Garrison Access Hacks 1 | . . . . . 1 Seal Access 1 | . . . . . 1 Unauthorized Hacks . | . . . . . . Terminals . | . . . . . . Fabricators . | . . . . . . Repair Stations . | . . . . . . Recycling Units . | . . . . . . Scanalyzers . | . . . . . . Garrison Access . | . . . . . . Data Cores Recovered . | . . . . . . Used . | . . . . . . Hacking Detections 4 | . 4 . . . . Full Trace Events 1 | . 1 . . . . Feedback Events . | . . . . . . Feedback Blocked . | . . . . . . Robot Schematics Acquired . | . . . . . . Robots Built . | . . . . . . Authchips . | . . . . . . Time . | . . . . . . Total Robot Build Rating . | . . . . . . Part Schematics Acquired . | . . . . . . Parts Built . | . . . . . . Authchips . | . . . . . . Time . | . . . . . . Total Part Build Rating . | . . . . . . Parts Repaired 3 | . 3 . . . . Time 78 | . 78 . . . . Parts Recycled . | . . . . . . Recycled Matter . | . . . . . . Retrieved Matter . | . . . . . . Retrieved Components 10 | . 10 . . . . Parts Scanalyzed . | . . . . . . Part Schematics Acquired . | . . . . . . Parts Damaged . | . . . . . . Bothacking | -11 -10 -10 -10 -9 -8 ------------ Run | Yrd Mat Min Exi Min Mat Used RIF Installer . | . . . . . . Robots Hacked . | . . . . . . Non-combat . | . . . . . . Combat . | . . . . . . Robot Hacks Applied . | . . . . . . Relay Couplers Released . | . . . . . . Fabnet Peak Effective % . | . . . . . . Robots Rewired . | . . . . . . Allies Hacked . | . . . . . . Hacks Repelled . | . . . . . . Allies | -11 -10 -10 -10 -9 -8 -------- Run | Yrd Mat Min Exi Min Mat Total Allies . | . . . . . . Largest Group . | . . . . . . Highest-Rated Group . | . . . . . . Highest-Rated Ally . | . . . . . . Total Orders . | . . . . . . Ally Attacks . | . . . . . . Total Damage . | . . . . . . Kills . | . . . . . . Allies Corrupted . | . . . . . . Allies Melted . | . . . . . . Intel | -11 -10 -10 -10 -9 -8 ------- Run | Yrd Mat Min Exi Min Mat Robot Analysis Total . | . . . . . . Derelict Logs Recovered 1 | . . 1 . . . Drone Launches . | . . . . . . Drone Recoveries . | . . . . . . Exploration | -11 -10 -10 -10 -9 -8 ------------- Run | Yrd Mat Min Exi Min Mat Turns Passed 6535 | 68 2644 565 1465 348 1445 Spaces Moved 1939 | 34 910 172 454 109 260 Core 12 | 4 . . . . 8 Treads 1927 | 30 910 172 454 109 252 Legs . | . . . . . . Wheels . | . . . . . . Hover . | . . . . . . Flight . | . . . . . . Fastest Speed 50 | 50 160 320 160 320 50 Average Speed 296 | 147 245 320 319 320 427 Slowest Speed 3400 | 160 320 320 320 320 3400 Overloaded Moves . | . . . . . . Propulsion Burnouts . | . . . . . . Robots Hopped . | . . . . . . Cave-ins Triggered . | . . . . . . Exploration Rate (%) 44 | 3 79 39 91 35 18 Regions Visited 5 Branch Regions 3 Pre-discovered Areas . | . . . . . . Known Exits Taken 1 | . . . 1 . . Unknown Exits Taken 4 | 1 1 1 . 1 . Scrap Searched 2 | . . 1 . 1 . Spaces Dug . | . . . . . . Terrain Destroyed 15 | . 15 . . . . Melee . | . . . . . . Projectile . | . . . . . . AOE 15 | . 15 . . . . Terrain Rammed . | . . . . . . Walls Destroyed . | . . . . . . Machines Disabled . | . . . . . . Actions | -11 -10 -10 -10 -9 -8 --------- Run | Yrd Mat Min Exi Min Mat Total 2408 | 51 1170 178 471 110 428 Wait 184 | 3 139 . . . 42 Move 1934 | 33 909 171 453 108 260 Hop . | . . . . . . Pick Up 51 | 7 19 1 15 2 7 Fast Attach . | . . . . . . Attach 19 | 6 5 . . . 8 Detach 1 | . . . . . 1 Swap 9 | . 6 . 2 . 1 Drop 2 | . 1 . 1 . . Fire 187 | . 86 5 . . 96 Melee . | . . . . . . Ram 11 | . . . . . 11 Kick . | . . . . . . Crush 10 | 2 5 1 . . 2 Escape Stasis . | . . . . . . Rewire . | . . . . . . Trap . | . . . . . . Miscellaneous . | . . . . . . Route ------- -11/Scrapyard -10/Materials (discovered 3 exits: [*Mat x2] / [*Min]) -10/Mines (discovered 2 exits: *Exi / [*Sub]) -10/Exiles (discovered 2 exits: *Min x2) -9/Mines -8/Materials History --------- Turn | Location | Event 23 | -11/Scrapyard | Discovered new exit (range 16) 69 | -11/Scrapyard | Entered Materials 318 | -10/Materials | Build established: Mutant 708 | -10/Materials | Discovered new exit (range 7) 831 | -10/Materials | Discovered new exit (range 16) 1158 | -10/Materials | Core integrity fell below 50% 1542 | -10/Materials | Repaired Lgt. Treads 1569 | -10/Materials | Repaired Lgt. Treads 1708 | -10/Materials | Discovered new exit (range 15) 2117 | -10/Materials | Repaired Lgt. Assault Rifle 2713 | -10/Materials | Entered Mines 2768 | -10/Mines | Met a Derelict bent on vengeance 2819 | -10/Mines | Deemed a non-threat by the Exiles lab entrance 2819 | -10/Mines | Discovered new exit (range 5) 3239 | -10/Mines | Discovered new exit (range 9) 3278 | -10/Mines | Entered Exiles 3279 | -10/Exiles | Identified exit to Mines 3419 | -10/Exiles | Met 8R-AWN 3477 | -10/Exiles | Met EX-HEX 3576 | -10/Exiles | Met EX-BIN 3614 | -10/Exiles | Aligned with FarCom system 3618 | -10/Exiles | Given EX-Vault access code 3694 | -10/Exiles | Opened EX-Vault 3707 | -10/Exiles | Found Prototype Storage 3708 | -10/Exiles | Identified Superbattery 3836 | -10/Exiles | Warned to stay clear of 0b10 Research branches 3929 | -10/Exiles | Met EX-DEC 4064 | -10/Exiles | Visited The Gauntlet 4743 | -10/Exiles | Left Exiles lab with Superbattery 4743 | -10/Exiles | Entered Mines 4850 | -9/Mines | Received a Rocket Launcher from a helpful Derelict 4895 | -9/Mines | Discovered new exit (range 14) 5091 | -9/Mines | Entered Materials 5091 | -8/Materials | Evolved 4 slots: Propulsion x2, Utility x2 5307 | -8/Materials | Garrison activated, responded to threat 5412 | -8/Materials | Build established: Hauler-Mutant 5907 | -8/Materials | Lost 5 parts (1p2n1u1w) 6380 | -8/Materials | Lost 3 parts (2n1w) 6482 | -8/Materials | Core integrity fell below 50% 6501 | -8/Materials | Core integrity fell below 20% 6530 | -8/Materials | Lost 3 parts (2u1w) 6536 | -8/Materials | Destroyed by G-47 Trooper with Particle Gun Last Messages --------------- 06499_ G-47 Trooper knocked back. 06499_ Hacking Suite destroyed. 06499_ System corrupted by crushing effect (+2). 06499_ R-06 Scavenger collects Huge Storage Unit. 06500_ System corrupted: Component data lost. 06502_ R-06 Scavenger collects Aluminum Leg. 06503_ Slammed into G-47 Trooper. 06503_ K-01 Serf collects debris. 06522_ U-05 Engineer destroyed. 06523_ R-06 Scavenger collects Aluminum Leg. 06525_ K-01 Serf collects debris. 06527_ R-06 Scavenger collects Lgt. Nuclear Core. 06528_ Critical hit (Burn: +37). 06529_ K-01 Serf collects debris. 06530_ System corrupted: Energy discharge (-55). 06532_ R-06 Scavenger collects Particle Gun. 06535_ R-06 Scavenger collects Terrain Scanner. 06535_ K-01 Serf collects debris. Map ----- +----------------------------------------------------+ | ???????????????????????? ????????????????????? | | ???????????????????????# ?????????????????????? | | ???????????????????????# ?????????????????????? | | ???????????????????????# #?????????????????????? | | ?????????????########### #?????????????????????? | | ???########### = # #?????????????????????? | | ???# ! # # #?????????????????????? | | ???# # """ """ # #?????????????????????? | | ???# """ # """ "" =# #?????????????????????? | | ???# """ # """ "" %# %#?????????????????????? | | ???# """ "" # + #?????????????????????? | | ???# S"" # * % # #?????????????????????? | | #??# "" # # #?????????????????????? | | #### ########### #?????????????????????? | | #######+######??########u #?????????????????????? | | ######## # #?????????????????????? | | + """ # #?????????????????????? | | ##### """ + #???#######???????????? | | ###### #???# """ # #?? #???????????? | | ###### #???# #%% #?? ]]] #???????????? | | #????# #???# ! #%r%#?] ]]] #???????????? | | ?????# ##+############ % #? ]]] #???????????? | | ?##### # =#??????#%!%#!! % #???????????? | | ?+ # "" #??????#%![#]! #???????????? | | ?##### # "G #??????#=!]+[*! #???????????? | | ?????# # "" #??????#%@k#]! #???????????? | | ?????# # #??????#*=g##### #####???????????? | | ?????# # #?????## !|##????????????????????? | | ###### ###+########## ! #????????????????????? | | #????????????????????? | | T #????????????????????? | | #????????????????????? | | #####+######## ### #????????????????????? | | ?????????????# #?#######????????????????????? | | ?????????????#! !#????????????????????????????? | | ?????????????##!!!!##????????????????????????????? | | ??????????????######?????????????????????????????? | | ?????????????????????????????????????????????????? | | ?????????????????????????????????????????????????? | | ?????????????????????????????????????????????????? | | ?????????????????????????????????????????????????? | | ?????????????????????????????????????????????????? | | ?????????????????????????????????????????????????? | | ?????????????????????????????????????????????????? | | ?????????????????????????????????????????????????? | | ?????????????????????????????????????????????????? | | ?????????????????????????????????????????????????? | | ?????????????????????????????????????????????????? | | ?????????????????????????????????????????????????? | | | +----------------------------------------------------+ Best States ------------- Heat Dissipation 31 Energy Generation 14 Energy Capacity 1660 Matter Stores 300 Matter Capacity 300 Sight Range 16 Robot Scan Range 14 Terrain Scan Density 10 Armor Coverage 150 Evasion (%) 40 Recoil Reduction 4 Offensive Hacking 10 Item Schematics ----------------- None Robot Schematics ------------------ None Fabricated ------------ Nothing Alien Tech Used ----------------- None Achievements -------------- Fist Fight Tank Troublemaker Challenges ------------ None Game ------ Seed SiegeGammaDetector Manual? 0 Play Time 00:39:30 Cumulative 5.1 hours Start 2024.04.05 @ 22:52:44 End 2024.04.06 @ 04:45:43 Sessions 3 Manual Loads 0 Difficulty Rogue Special Mode None Game No. 8 Rogue 8 Adventurer 0 Explorer 0 Win Type - Total 0 Types 0/0/0/0/0/0/0/0/0 Lore% 13 Gallery% 8 Achievement% 10 Wizard Run 0 Options --------- Layout 1 ASCII 0 Keyboard 0 Movement Numpad Keybinds 0 Fullscreen 1 Font 24/Smallcaps Map View 50x35 Zoom Use 0% Tactical HUD 1 Map Filters NONE Filters NONE Steam 1 RUN: a9ab2c2c-cf68-4042-8f44-d3199fa776e6